[Event "Titled Tuesday Blitz August 1 Late 2023"]
[White "Gertler, David"]
[Black "Hirneise, Jens"]
[WhiteFideId "2017377"]
[BlackFideId "24614734"]
[WhiteElo "2307"]
[BlackElo "2473"]
[Result "1/2-1/2"]
[Round "3"]
[TimeControl "180+1"]
[Date "2023.08.01"]
[WhiteClock "0:00:55"]
[BlackClock "0:00:38"]
[Board "154"]

1. e4 {[%clk 0:02:54]}  e5 {[%clk 0:02:55]} 2. Nf3 {[%clk 0:02:53]}  Nc6 {[%clk 0:02:55]} 3. Bb5 {[%clk 0:02:54]}  Nge7 {[%clk 0:02:51]} 4. Nc3 {[%clk 0:02:53]}  Ng6 {[%clk 0:02:50]} 5. d4 {[%clk 0:02:53]}  exd4 {[%clk 0:02:47]} 6. Nxd4 {[%clk 0:02:54]}  Bc5 {[%clk 0:02:42]} 7. Nf5 {[%clk 0:02:53]}  O-O {[%clk 0:02:42]} 8. O-O {[%clk 0:02:51]}  d6 {[%clk 0:02:39]} 9. Qh5 {[%clk 0:02:41]}  Nd4 {[%clk 0:02:28]} 10. Bd3 {[%clk 0:02:35]}  Bxf5 {[%clk 0:02:16]} 11. exf5 {[%clk 0:02:34]}  Qh4 {[%clk 0:02:17]} 12. Qxh4 {[%clk 0:02:21]}  Nxh4 {[%clk 0:02:18]} 13. f6 {[%clk 0:02:12]}  c6 {[%clk 0:01:51]} 14. Ne4 {[%clk 0:01:59]}  Ne6 {[%clk 0:01:36]} 15. g3 {[%clk 0:01:27]}  Nf3+ {[%clk 0:01:28]} 16. Kg2 {[%clk 0:01:27]}  Ne5 {[%clk 0:01:29]} 17. f4 {[%clk 0:01:26]}  Nxd3 {[%clk 0:01:27]} 18. cxd3 {[%clk 0:01:27]}  d5 {[%clk 0:01:26]} 19. fxg7 {[%clk 0:01:26]}  Kxg7 {[%clk 0:01:24]} 20. Nd2 {[%clk 0:01:21]}  Nd4 {[%clk 0:01:20]} 21. Nf3 {[%clk 0:01:20]}  Nxf3 {[%clk 0:01:19]} 22. Kxf3 {[%clk 0:01:20]}  Rfe8 {[%clk 0:01:19]} 23. Bd2 {[%clk 0:01:19]}  Bd4 {[%clk 0:01:15]} 24. Rae1 {[%clk 0:01:14]}  h5 {[%clk 0:01:06]} 25. Bc3 {[%clk 0:01:12]}  Bf6 {[%clk 0:01:04]} 26. Be5 {[%clk 0:00:58]}  Kg6 {[%clk 0:00:56]} 27. h3 {[%clk 0:00:57]}  Bxe5 {[%clk 0:00:49]} 28. fxe5 {[%clk 0:00:57]}  f6 {[%clk 0:00:38]} 29. exf6 {[%clk 0:00:55]} 1/2-1/2


[Site "https://www.chess.com"]

[Event "Titled Tuesday Blitz August 1 Late 2023"]
[White "Grossboss19"]
[Black "Stanisz, Patryk"]
[BlackFideId "1123106"]
[WhiteElo "2472"]
[BlackElo "2303"]
[Result "1-0"]
[Round "3"]
[TimeControl "180+1"]
[Date "2023.08.01"]
[WhiteClock "0:01:20"]
[BlackClock "0:00:59"]
[Board "156"]

1. Nf3 {[%clk 0:03:00]}  d5 {[%clk 0:02:58]} 2. b3 {[%clk 0:02:59]}  c6 {[%clk 0:02:55]} 3. Bb2 {[%clk 0:03:00]}  Bf5 {[%clk 0:02:55]} 4. g3 {[%clk 0:02:58]}  e6 {[%clk 0:02:55]} 5. Bg2 {[%clk 0:02:59]}  Nf6 {[%clk 0:02:56]} 6. O-O {[%clk 0:02:59]}  h6 {[%clk 0:02:56]} 7. c4 {[%clk 0:02:58]}  Be7 {[%clk 0:02:56]} 8. d4 {[%clk 0:02:54]}  O-O {[%clk 0:02:55]} 9. Nbd2 {[%clk 0:02:54]}  Ne4 {[%clk 0:02:55]} 10. Re1 {[%clk 0:02:51]}  Nd7 {[%clk 0:02:49]} 11. Rc1 {[%clk 0:02:41]}  Qa5 {[%clk 0:02:37]} 12. a3 {[%clk 0:02:26]}  Ndf6 {[%clk 0:02:28]} 13. b4 {[%clk 0:02:24]}  Qb6 {[%clk 0:02:26]} 14. c5 {[%clk 0:02:20]}  Qc7 {[%clk 0:02:22]} 15. Nb3 {[%clk 0:02:19]}  Ng4 {[%clk 0:02:20]} 16. Rf1 {[%clk 0:02:17]}  Bg5 {[%clk 0:01:56]} 17. Nxg5 {[%clk 0:02:04]}  Nxg5 {[%clk 0:01:45]} 18. Nd2 {[%clk 0:01:57]}  Rfe8 {[%clk 0:01:39]} 19. Qb3 {[%clk 0:01:52]}  a6 {[%clk 0:01:38]} 20. f3 {[%clk 0:01:47]}  Nf6 {[%clk 0:01:34]} 21. Rce1 {[%clk 0:01:46]}  Nh3+ {[%clk 0:01:18]} 22. Kh1 {[%clk 0:01:41]}  Ng5 {[%clk 0:01:15]} 23. e4 {[%clk 0:01:29]}  Bg6 {[%clk 0:01:15]} 24. e5 {[%clk 0:01:24]}  Nd7 {[%clk 0:01:15]} 25. f4 {[%clk 0:01:22]}  Bh7 {[%clk 0:00:59]} 26. fxg5 {[%clk 0:01:20]} 1-0


[Site "https://www.chess.com"]

[Event "Titled Tuesday Blitz August 1 Late 2023"]
[White "Cupid, Kevin"]
[Black "Bazilius, Augustinas"]
[WhiteFideId "7700512"]
[BlackFideId "12832251"]
[WhiteElo "2297"]
[BlackElo "2459"]
[Result "1-0"]
[Round "3"]
[TimeControl "180+1"]
[Date "2023.08.01"]
[WhiteClock "0:01:08"]
[BlackClock "0:00:00"]
[Board "159"]

1. d4 {[%clk 0:03:00]}  Nf6 {[%clk 0:02:59]} 2. Nf3 {[%clk 0:03:01]}  g6 {[%clk 0:02:59]} 3. c4 {[%clk 0:03:01]}  Bg7 {[%clk 0:02:59]} 4. Nc3 {[%clk 0:03:01]}  d5 {[%clk 0:03:00]} 5. Bf4 {[%clk 0:02:59]}  O-O {[%clk 0:02:59]} 6. e3 {[%clk 0:02:59]}  c5 {[%clk 0:02:59]} 7. dxc5 {[%clk 0:02:57]}  Ne4 {[%clk 0:02:59]} 8. Rc1 {[%clk 0:02:55]}  Qa5 {[%clk 0:02:56]} 9. Qb3 {[%clk 0:02:54]}  Nxc5 {[%clk 0:02:45]} 10. Qc2 {[%clk 0:02:47]}  Bf5 {[%clk 0:02:42]} 11. Qd1 {[%clk 0:02:47]}  dxc4 {[%clk 0:02:30]} 12. Bxc4 {[%clk 0:02:46]}  Rd8 {[%clk 0:02:30]} 13. Nd2 {[%clk 0:02:05]}  Bd3 {[%clk 0:02:04]} 14. Nb3 {[%clk 0:01:51]}  Qb6 {[%clk 0:01:15]} 15. Nd5 {[%clk 0:01:32]}  Rxd5 {[%clk 0:00:41]} 16. Bxd5 {[%clk 0:01:33]}  Na4 {[%clk 0:00:16]} 17. Rc8+ {[%clk 0:01:31]}  Bf8 {[%clk 0:00:14]} 18. Qxd3 {[%clk 0:01:18]}  Nxb2 {[%clk 0:00:10]} 19. Qc3 {[%clk 0:01:15]}  Nc6 {[%clk 0:00:00]} 20. Bh6 {[%clk 0:01:08]} 1-0


[Site "https://www.chess.com"]

[Event "Titled Tuesday Blitz August 1 Late 2023"]
[White "Gaal, Zsoka"]
[Black "Harish, Neeraj"]
[WhiteFideId "777765"]
[BlackFideId "30958130"]
[WhiteElo "2456"]
[BlackElo "2296"]
[Result "1-0"]
[Round "3"]
[TimeControl "180+1"]
[Date "2023.08.01"]
[WhiteClock "0:01:05"]
[BlackClock "0:00:41"]
[Board "160"]

1. Nf3 {[%clk 0:02:53]}  Nf6 {[%clk 0:02:58]} 2. g3 {[%clk 0:02:54]}  d5 {[%clk 0:02:56]} 3. Bg2 {[%clk 0:02:55]}  e6 {[%clk 0:02:56]} 4. b3 {[%clk 0:02:55]}  Be7 {[%clk 0:02:56]} 5. Bb2 {[%clk 0:02:55]}  O-O {[%clk 0:02:57]} 6. O-O {[%clk 0:02:55]}  c5 {[%clk 0:02:56]} 7. c4 {[%clk 0:02:56]}  Nc6 {[%clk 0:02:56]} 8. e3 {[%clk 0:02:55]}  b6 {[%clk 0:02:45]} 9. cxd5 {[%clk 0:02:54]}  Nxd5 {[%clk 0:02:44]} 10. d4 {[%clk 0:02:51]}  cxd4 {[%clk 0:02:44]} 11. Nxd4 {[%clk 0:02:51]}  Nxd4 {[%clk 0:02:43]} 12. Bxd4 {[%clk 0:02:52]}  Bb7 {[%clk 0:02:41]} 13. Nd2 {[%clk 0:02:41]}  Bf6 {[%clk 0:02:40]} 14. Nc4 {[%clk 0:02:39]}  Bxd4 {[%clk 0:02:39]} 15. Qxd4 {[%clk 0:02:40]}  Qe7 {[%clk 0:02:30]} 16. Rac1 {[%clk 0:02:16]}  Rfd8 {[%clk 0:02:29]} 17. Qa1 {[%clk 0:02:14]}  Nf6 {[%clk 0:02:25]} 18. Ne5 {[%clk 0:02:10]}  Bxg2 {[%clk 0:02:08]} 19. Kxg2 {[%clk 0:02:11]}  Qb7+ {[%clk 0:02:08]} 20. Kg1 {[%clk 0:02:11]}  Rac8 {[%clk 0:02:06]} 21. Rfd1 {[%clk 0:02:11]}  Rxd1+ {[%clk 0:01:53]} 22. Rxd1 {[%clk 0:02:12]}  h6 {[%clk 0:01:52]} 23. Qd4 {[%clk 0:02:08]}  Qd5 {[%clk 0:01:38]} 24. Qxd5 {[%clk 0:01:58]}  Nxd5 {[%clk 0:01:38]} 25. e4 {[%clk 0:01:58]}  Nf6 {[%clk 0:01:38]} 26. f3 {[%clk 0:01:45]}  g6 {[%clk 0:01:38]} 27. Nc4 {[%clk 0:01:41]}  b5 {[%clk 0:01:36]} 28. Ne3 {[%clk 0:01:41]}  Kg7 {[%clk 0:01:35]} 29. Kf2 {[%clk 0:01:41]}  h5 {[%clk 0:01:32]} 30. h4 {[%clk 0:01:33]}  e5 {[%clk 0:01:30]} 31. Ke2 {[%clk 0:01:28]}  b4 {[%clk 0:01:22]} 32. Nc4 {[%clk 0:01:20]}  Kf8 {[%clk 0:01:17]} 33. Nxe5 {[%clk 0:01:18]}  Rc2+ {[%clk 0:01:16]} 34. Rd2 {[%clk 0:01:18]}  Rc1 {[%clk 0:01:13]} 35. Nd3 {[%clk 0:01:17]}  Rg1 {[%clk 0:01:11]} 36. Kf2 {[%clk 0:01:17]}  Rh1 {[%clk 0:01:08]} 37. Nxb4 {[%clk 0:01:17]}  Rh2+ {[%clk 0:01:06]} 38. Ke3 {[%clk 0:01:17]}  Rh1 {[%clk 0:01:03]} 39. Kf4 {[%clk 0:01:16]}  a5 {[%clk 0:01:03]} 40. Nd5 {[%clk 0:01:16]}  Nxd5+ {[%clk 0:01:02]} 41. Rxd5 {[%clk 0:01:17]}  Ra1 {[%clk 0:01:02]} 42. Rxa5 {[%clk 0:01:17]}  Kg7 {[%clk 0:01:02]} 43. b4 {[%clk 0:01:17]}  Rb1 {[%clk 0:01:01]} 44. b5 {[%clk 0:01:17]}  Rb4 {[%clk 0:00:59]} 45. a4 {[%clk 0:01:17]}  f6 {[%clk 0:00:57]} 46. Ra7+ {[%clk 0:01:17]}  Kh6 {[%clk 0:00:57]} 47. Ra6 {[%clk 0:01:11]}  Kg7 {[%clk 0:00:52]} 48. b6 {[%clk 0:01:11]}  Kf7 {[%clk 0:00:53]} 49. a5 {[%clk 0:01:11]}  Ke7 {[%clk 0:00:54]} 50. Ra7+ {[%clk 0:01:12]}  Kd6 {[%clk 0:00:54]} 51. Rg7 {[%clk 0:01:08]}  Rb5 {[%clk 0:00:41]} 52. b7 {[%clk 0:01:05]} 1-0


[Site "https://www.chess.com"]

[Event "Titled Tuesday Blitz August 1 Late 2023"]
[White "Polaczek, Richard"]
[Black "Akhayan, Ruben"]
[WhiteFideId "200026"]
[BlackFideId "204439"]
[WhiteElo "2442"]
[BlackElo "2294"]
[Result "1/2-1/2"]
[Round "3"]
[TimeControl "180+1"]
[Date "2023.08.01"]
[WhiteClock "0:00:14"]
[BlackClock "0:00:51"]
[Board "162"]

1. Nf3 {[%clk 0:02:59]}  Nf6 {[%clk 0:02:59]} 2. d4 {[%clk 0:02:58]}  g6 {[%clk 0:02:59]} 3. Bg5 {[%clk 0:02:57]}  Bg7 {[%clk 0:02:59]} 4. Nbd2 {[%clk 0:02:57]}  O-O {[%clk 0:03:00]} 5. e4 {[%clk 0:02:56]}  d6 {[%clk 0:02:59]} 6. c3 {[%clk 0:02:55]}  Nbd7 {[%clk 0:02:56]} 7. Bc4 {[%clk 0:02:49]}  c6 {[%clk 0:02:54]} 8. O-O {[%clk 0:02:44]}  d5 {[%clk 0:02:53]} 9. exd5 {[%clk 0:02:41]}  cxd5 {[%clk 0:02:54]} 10. Bd3 {[%clk 0:02:39]}  a6 {[%clk 0:02:48]} 11. a4 {[%clk 0:02:37]}  b6 {[%clk 0:02:42]} 12. Re1 {[%clk 0:02:36]}  Bb7 {[%clk 0:02:42]} 13. h3 {[%clk 0:02:35]}  Rc8 {[%clk 0:02:41]} 14. Bf4 {[%clk 0:02:32]}  Re8 {[%clk 0:02:33]} 15. Qb3 {[%clk 0:02:31]}  e6 {[%clk 0:02:23]} 16. Bh2 {[%clk 0:02:16]}  Bf8 {[%clk 0:02:20]} 17. Rad1 {[%clk 0:02:04]}  Nb8 {[%clk 0:02:05]} 18. Ne5 {[%clk 0:02:03]}  Nc6 {[%clk 0:02:03]} 19. Nxc6 {[%clk 0:02:01]}  Rxc6 {[%clk 0:02:02]} 20. Nf3 {[%clk 0:01:58]}  Nd7 {[%clk 0:01:58]} 21. Bf1 {[%clk 0:01:52]}  Rc8 {[%clk 0:01:54]} 22. Bg3 {[%clk 0:01:43]}  Be7 {[%clk 0:01:47]} 23. Ne5 {[%clk 0:01:29]}  Nxe5 {[%clk 0:01:47]} 24. Bxe5 {[%clk 0:01:29]}  Bd6 {[%clk 0:01:46]} 25. g3 {[%clk 0:01:25]}  Bxe5 {[%clk 0:01:45]} 26. Rxe5 {[%clk 0:01:24]}  Qd6 {[%clk 0:01:39]} 27. Rde1 {[%clk 0:01:23]}  Re7 {[%clk 0:01:39]} 28. f4 {[%clk 0:01:19]}  Rce8 {[%clk 0:01:39]} 29. Bg2 {[%clk 0:01:14]}  Kg7 {[%clk 0:01:38]} 30. R5e3 {[%clk 0:01:02]}  Qc7 {[%clk 0:01:36]} 31. h4 {[%clk 0:01:00]}  Bc6 {[%clk 0:01:28]} 32. Qd1 {[%clk 0:00:52]}  Qd7 {[%clk 0:01:26]} 33. a5 {[%clk 0:00:49]}  bxa5 {[%clk 0:01:25]} 34. h5 {[%clk 0:00:47]}  a4 {[%clk 0:01:23]} 35. Qg4 {[%clk 0:00:45]}  e5 {[%clk 0:01:08]} 36. Qxd7 {[%clk 0:00:36]}  Rxd7 {[%clk 0:01:08]} 37. Rxe5 {[%clk 0:00:33]}  Rb8 {[%clk 0:01:04]} 38. hxg6 {[%clk 0:00:30]}  hxg6 {[%clk 0:01:04]} 39. R1e2 {[%clk 0:00:27]}  Rdb7 {[%clk 0:01:03]} 40. Bxd5 {[%clk 0:00:27]}  Bxd5 {[%clk 0:01:03]} 41. Rxd5 {[%clk 0:00:27]}  Rxb2 {[%clk 0:01:04]} 42. Rxb2 {[%clk 0:00:26]}  Rxb2 {[%clk 0:01:04]} 43. Ra5 {[%clk 0:00:25]}  Rb3 {[%clk 0:01:02]} 44. Rxa4 {[%clk 0:00:17]}  Rxc3 {[%clk 0:01:02]} 45. Kf2 {[%clk 0:00:17]}  Rd3 {[%clk 0:00:55]} 46. Rxa6 {[%clk 0:00:16]}  Rxd4 {[%clk 0:00:55]} 47. Ke3 {[%clk 0:00:16]}  Rd7 {[%clk 0:00:54]} 48. Kf3 {[%clk 0:00:16]}  Rc7 {[%clk 0:00:54]} 49. Ke3 {[%clk 0:00:15]}  Rb7 {[%clk 0:00:53]} 50. Kf3 {[%clk 0:00:14]}  Rc7 {[%clk 0:00:51]} 1/2-1/2


[Site "https://www.chess.com"]

[Event "Titled Tuesday Blitz August 1 Late 2023"]
[White "Miguelitro69"]
[Black "Al Mukhaini, Shima"]
[BlackFideId "22005854"]
[WhiteElo "2288"]
[BlackElo "2415"]
[Result "1-0"]
[Round "3"]
[TimeControl "180+1"]
[Date "2023.08.01"]
[WhiteClock "0:02:14"]
[BlackClock "0:01:48"]
[Board "164"]

1. e4 {[%clk 0:03:00]}  e5 {[%clk 0:02:53]} 2. Nf3 {[%clk 0:03:00]}  Nc6 {[%clk 0:02:50]} 3. Bb5 {[%clk 0:03:00]}  d6 {[%clk 0:02:49]} 4. c3 {[%clk 0:02:58]}  Bg4 {[%clk 0:02:48]} 5. h3 {[%clk 0:02:57]}  Bh5 {[%clk 0:02:48]} 6. d3 {[%clk 0:02:53]}  Nf6 {[%clk 0:02:46]} 7. Nbd2 {[%clk 0:02:52]}  a6 {[%clk 0:02:45]} 8. Ba4 {[%clk 0:02:51]}  b5 {[%clk 0:02:45]} 9. Bc2 {[%clk 0:02:51]}  Be7 {[%clk 0:02:45]} 10. Nf1 {[%clk 0:02:51]}  O-O {[%clk 0:02:45]} 11. Ng3 {[%clk 0:02:52]}  Bg6 {[%clk 0:02:45]} 12. Be3 {[%clk 0:02:45]}  d5 {[%clk 0:02:37]} 13. Qe2 {[%clk 0:02:37]}  d4 {[%clk 0:02:29]} 14. Bd2 {[%clk 0:02:33]}  b4 {[%clk 0:02:20]} 15. O-O {[%clk 0:02:30]}  bxc3 {[%clk 0:02:16]} 16. bxc3 {[%clk 0:02:29]}  Bc5 {[%clk 0:02:12]} 17. Ba4 {[%clk 0:02:19]}  Qd6 {[%clk 0:02:10]} 18. Bxc6 {[%clk 0:02:16]}  Qxc6 {[%clk 0:02:10]} 19. Nxe5 {[%clk 0:02:16]}  Qd6 {[%clk 0:02:09]} 20. Nxg6 {[%clk 0:02:13]}  hxg6 {[%clk 0:01:48]} 21. e5 {[%clk 0:02:14]} 1-0


[Site "https://www.chess.com"]

[Event "Titled Tuesday Blitz August 1 Late 2023"]
[White "Chemin, Justo Reinaldo"]
[Black "Vega Gutierrez, Sabrina"]
[WhiteFideId "2101580"]
[BlackFideId "2219026"]
[WhiteElo "2278"]
[BlackElo "2414"]
[Result "0-1"]
[Round "3"]
[TimeControl "180+1"]
[Date "2023.08.01"]
[WhiteClock "0:00:37"]
[BlackClock "0:00:57"]
[Board "165"]

1. e4 {[%clk 0:03:00]}  c5 {[%clk 0:02:59]} 2. Nf3 {[%clk 0:03:00]}  Nc6 {[%clk 0:02:59]} 3. d4 {[%clk 0:02:58]}  cxd4 {[%clk 0:02:59]} 4. Nxd4 {[%clk 0:02:59]}  Nf6 {[%clk 0:03:00]} 5. Nc3 {[%clk 0:02:58]}  e5 {[%clk 0:02:59]} 6. Nb3 {[%clk 0:02:54]}  Bb4 {[%clk 0:02:58]} 7. Bg5 {[%clk 0:02:47]}  h6 {[%clk 0:02:45]} 8. Bxf6 {[%clk 0:02:47]}  Qxf6 {[%clk 0:02:45]} 9. Qd3 {[%clk 0:02:39]}  d6 {[%clk 0:02:28]} 10. f3 {[%clk 0:02:38]}  O-O {[%clk 0:02:14]} 11. O-O-O {[%clk 0:02:37]}  Be6 {[%clk 0:02:13]} 12. Nd5 {[%clk 0:02:21]}  Qg5+ {[%clk 0:01:37]} 13. Kb1 {[%clk 0:02:16]}  a5 {[%clk 0:01:37]} 14. Nc7 {[%clk 0:01:52]}  Rac8 {[%clk 0:01:34]} 15. Nxe6 {[%clk 0:01:52]}  fxe6 {[%clk 0:01:34]} 16. a3 {[%clk 0:01:48]}  a4 {[%clk 0:01:34]} 17. axb4 {[%clk 0:01:30]}  axb3 {[%clk 0:01:33]} 18. c3 {[%clk 0:01:21]}  Qe7 {[%clk 0:01:32]} 19. Qxd6 {[%clk 0:01:14]}  Rfd8 {[%clk 0:01:28]} 20. Qxd8+ {[%clk 0:00:59]}  Rxd8 {[%clk 0:01:28]} 21. Rxd8+ {[%clk 0:00:59]}  Qxd8 {[%clk 0:01:27]} 22. Bc4 {[%clk 0:01:00]}  Kf7 {[%clk 0:01:10]} 23. Bxb3 {[%clk 0:01:00]}  Qd3+ {[%clk 0:01:10]} 24. Ka2 {[%clk 0:00:51]}  Qa6+ {[%clk 0:01:03]} 25. Kb1 {[%clk 0:00:51]}  Qe2 {[%clk 0:01:00]} 26. Rd1 {[%clk 0:00:50]}  Qxg2 {[%clk 0:00:59]} 27. Rd7+ {[%clk 0:00:50]}  Kf6 {[%clk 0:00:57]} 28. Rxb7 {[%clk 0:00:45]}  Qf1+ {[%clk 0:00:57]} 29. Ka2 {[%clk 0:00:37]}  Qa6+ {[%clk 0:00:57]} 0-1


[Site "https://www.chess.com"]

[Event "Titled Tuesday Blitz August 1 Late 2023"]
[White "Sala, Giulia"]
[Black "Uzcategui Rodriguez, Alejandro"]
[WhiteFideId "2840451"]
[BlackFideId "3903400"]
[WhiteElo "2265"]
[BlackElo "2402"]
[Result "0-1"]
[Round "3"]
[TimeControl "180+1"]
[Date "2023.08.01"]
[WhiteClock "0:02:16"]
[BlackClock "0:01:59"]
[Board "167"]

1. d4 {[%clk 0:03:00]}  Nf6 {[%clk 0:02:58]} 2. Bf4 {[%clk 0:03:00]}  d6 {[%clk 0:02:56]} 3. Nc3 {[%clk 0:03:00]}  Nbd7 {[%clk 0:02:55]} 4. e4 {[%clk 0:03:00]}  e5 {[%clk 0:02:56]} 5. dxe5 {[%clk 0:02:59]}  dxe5 {[%clk 0:02:56]} 6. Bg5 {[%clk 0:02:59]}  c6 {[%clk 0:02:54]} 7. Qd2 {[%clk 0:02:59]}  Qc7 {[%clk 0:02:53]} 8. O-O-O {[%clk 0:02:58]}  Be7 {[%clk 0:02:54]} 9. Nf3 {[%clk 0:02:58]}  Nc5 {[%clk 0:02:53]} 10. Qe3 {[%clk 0:02:54]}  b5 {[%clk 0:02:41]} 11. Bxf6 {[%clk 0:02:44]}  gxf6 {[%clk 0:02:42]} 12. Nh4 {[%clk 0:02:43]}  Qa5 {[%clk 0:02:37]} 13. Kb1 {[%clk 0:02:43]}  b4 {[%clk 0:02:36]} 14. Ne2 {[%clk 0:02:42]}  Be6 {[%clk 0:02:30]} 15. Nc1 {[%clk 0:02:42]}  Na4 {[%clk 0:02:29]} 16. Nb3 {[%clk 0:02:39]}  Qb6 {[%clk 0:02:20]} 17. Nf5 {[%clk 0:02:37]}  Qxe3 {[%clk 0:02:15]} 18. Nxe3 {[%clk 0:02:36]}  Nc5 {[%clk 0:02:10]} 19. f3 {[%clk 0:02:35]}  Nxb3 {[%clk 0:02:10]} 20. axb3 {[%clk 0:02:35]}  Rd8 {[%clk 0:02:07]} 21. Bc4 {[%clk 0:02:26]}  Bc5 {[%clk 0:02:04]} 22. Nf1 {[%clk 0:02:16]}  Rxd1+ {[%clk 0:01:59]} 0-1


[Site "https://www.chess.com"]

[Event "Titled Tuesday Blitz August 1 Late 2023"]
[White "Sliwicki, Damian"]
[Black "Cardozo Munar, Carlos Eduardo"]
[WhiteFideId "1127128"]
[BlackFideId "4409477"]
[WhiteElo "2402"]
[BlackElo "2253"]
[Result "1-0"]
[Round "3"]
[TimeControl "180+1"]
[Date "2023.08.01"]
[WhiteClock "0:00:52"]
[BlackClock "0:00:01"]
[Board "168"]

1. e4 {[%clk 0:02:43]}  e6 {[%clk 0:02:54]} 2. Qe2 {[%clk 0:02:42]}  d5 {[%clk 0:02:53]} 3. exd5 {[%clk 0:02:43]}  Qxd5 {[%clk 0:02:52]} 4. Nc3 {[%clk 0:02:44]}  Qa5 {[%clk 0:02:52]} 5. Nf3 {[%clk 0:02:43]}  Nf6 {[%clk 0:02:52]} 6. d4 {[%clk 0:02:42]}  Be7 {[%clk 0:02:52]} 7. Bd2 {[%clk 0:02:43]}  c6 {[%clk 0:02:51]} 8. O-O-O {[%clk 0:02:41]}  O-O {[%clk 0:02:50]} 9. g4 {[%clk 0:02:39]}  b5 {[%clk 0:02:50]} 10. Kb1 {[%clk 0:02:38]}  Qb6 {[%clk 0:02:48]} 11. g5 {[%clk 0:02:37]}  Nd5 {[%clk 0:02:48]} 12. Nxd5 {[%clk 0:02:37]}  cxd5 {[%clk 0:02:47]} 13. h4 {[%clk 0:02:34]}  Bb7 {[%clk 0:02:46]} 14. h5 {[%clk 0:02:34]}  Rc8 {[%clk 0:02:46]} 15. g6 {[%clk 0:02:31]}  hxg6 {[%clk 0:02:21]} 16. hxg6 {[%clk 0:02:10]}  fxg6 {[%clk 0:02:15]} 17. Bh3 {[%clk 0:02:01]}  Rc6 {[%clk 0:01:35]} 18. Ne5 {[%clk 0:01:56]}  Bc8 {[%clk 0:00:56]} 19. Qf3 {[%clk 0:01:52]}  Bf6 {[%clk 0:00:55]} 20. Nxg6 {[%clk 0:01:05]}  Qxd4 {[%clk 0:00:25]} 21. Bxe6+ {[%clk 0:00:53]}  Bxe6 {[%clk 0:00:23]} 22. Rh8+ {[%clk 0:00:54]}  Kf7 {[%clk 0:00:22]} 23. Rf8+ {[%clk 0:00:52]}  Kxg6 {[%clk 0:00:21]} 24. Rg1+ {[%clk 0:00:53]}  Kh7 {[%clk 0:00:01]} 25. Qh5# {[%clk 0:00:52]} 1-0


[Site "https://www.chess.com"]

[Event "Titled Tuesday Blitz August 1 Late 2023"]
[White "Silva Lucena, Cristian"]
[Black "Celestino, Rafael Teixeira"]
[WhiteFideId "2232588"]
[BlackFideId "2108925"]
[WhiteElo "2397"]
[BlackElo "2230"]
[Result "1-0"]
[Round "3"]
[TimeControl "180+1"]
[Date "2023.08.01"]
[WhiteClock "0:01:25"]
[BlackClock "0:01:23"]
[Board "171"]

1. Nf3 {[%clk 0:02:59]}  Nf6 {[%clk 0:02:59]} 2. c4 {[%clk 0:02:57]}  g6 {[%clk 0:03:00]} 3. b3 {[%clk 0:02:57]}  Bg7 {[%clk 0:03:01]} 4. Bb2 {[%clk 0:02:58]}  O-O {[%clk 0:03:02]} 5. g3 {[%clk 0:02:58]}  d5 {[%clk 0:03:02]} 6. cxd5 {[%clk 0:02:58]}  Qxd5 {[%clk 0:03:02]} 7. Bg2 {[%clk 0:02:57]}  Bg4 {[%clk 0:03:01]} 8. O-O {[%clk 0:02:57]}  c5 {[%clk 0:02:59]} 9. Ne5 {[%clk 0:02:48]}  Qe6 {[%clk 0:02:50]} 10. Bxb7 {[%clk 0:02:39]}  Nbd7 {[%clk 0:02:51]} 11. Nxd7 {[%clk 0:02:37]}  Qxd7 {[%clk 0:02:50]} 12. Bg2 {[%clk 0:02:32]}  Rad8 {[%clk 0:02:49]} 13. d3 {[%clk 0:02:33]}  h5 {[%clk 0:02:48]} 14. Nd2 {[%clk 0:02:33]}  h4 {[%clk 0:02:47]} 15. Nf3 {[%clk 0:02:32]}  h3 {[%clk 0:02:48]} 16. Bh1 {[%clk 0:02:32]}  Qe6 {[%clk 0:02:48]} 17. Rc1 {[%clk 0:02:27]}  Rc8 {[%clk 0:02:47]} 18. Rc4 {[%clk 0:02:25]}  Rfd8 {[%clk 0:02:47]} 19. Qa1 {[%clk 0:02:23]}  Bh5 {[%clk 0:02:41]} 20. Re1 {[%clk 0:02:19]}  Rc7 {[%clk 0:02:36]} 21. Qc1 {[%clk 0:02:12]}  Qf5 {[%clk 0:02:35]} 22. Bc3 {[%clk 0:02:04]}  Kh7 {[%clk 0:02:26]} 23. Ba5 {[%clk 0:02:04]}  Bh6 {[%clk 0:02:25]} 24. Qb1 {[%clk 0:01:55]}  Rdc8 {[%clk 0:02:23]} 25. Bxc7 {[%clk 0:01:55]}  Rxc7 {[%clk 0:02:24]} 26. Qc2 {[%clk 0:01:50]}  e6 {[%clk 0:01:54]} 27. b4 {[%clk 0:01:49]}  Bf8 {[%clk 0:01:54]} 28. Rf4 {[%clk 0:01:46]}  Qd5 {[%clk 0:01:45]} 29. Rxf6 {[%clk 0:01:44]}  Bd6 {[%clk 0:01:46]} 30. Qd2 {[%clk 0:01:40]}  Kg7 {[%clk 0:01:42]} 31. Rf4 {[%clk 0:01:27]}  Bxf4 {[%clk 0:01:41]} 32. Qxf4 {[%clk 0:01:28]}  Rd7 {[%clk 0:01:28]} 33. Ne5 {[%clk 0:01:27]}  Qxa2 {[%clk 0:01:23]} 34. Nxd7 {[%clk 0:01:25]}  Qd2 {[%clk 0:01:23]} 35. Qxd2 {[%clk 0:01:25]} 1-0


[Site "https://www.chess.com"]

[Event "Titled Tuesday Blitz August 1 Late 2023"]
[White "Da Matta, Eduardo Cesar"]
[Black "Jahnz, Fabian"]
[WhiteFideId "2193108"]
[BlackFideId "4653300"]
[WhiteElo "2223"]
[BlackElo "2394"]
[Result "0-1"]
[Round "3"]
[TimeControl "180+1"]
[Date "2023.08.01"]
[WhiteClock "0:01:10"]
[BlackClock "0:01:47"]
[Board "172"]

1. d4 {[%clk 0:03:00]}  d5 {[%clk 0:03:00]} 2. c4 {[%clk 0:03:00]}  e6 {[%clk 0:03:00]} 3. Nc3 {[%clk 0:03:01]}  Nf6 {[%clk 0:03:00]} 4. cxd5 {[%clk 0:03:01]}  exd5 {[%clk 0:03:00]} 5. Bg5 {[%clk 0:03:02]}  c6 {[%clk 0:02:59]} 6. e3 {[%clk 0:03:02]}  Bf5 {[%clk 0:02:58]} 7. Qf3 {[%clk 0:03:01]}  Bg6 {[%clk 0:02:56]} 8. Bxf6 {[%clk 0:03:01]}  Qxf6 {[%clk 0:02:57]} 9. Qxf6 {[%clk 0:03:00]}  gxf6 {[%clk 0:02:58]} 10. Nge2 {[%clk 0:02:59]}  Bd6 {[%clk 0:02:57]} 11. h4 {[%clk 0:02:58]}  h5 {[%clk 0:02:52]} 12. Ng3 {[%clk 0:02:49]}  Bxg3 {[%clk 0:02:52]} 13. fxg3 {[%clk 0:02:50]}  Nd7 {[%clk 0:02:51]} 14. Kd2 {[%clk 0:02:38]}  O-O-O {[%clk 0:02:51]} 15. Bd3 {[%clk 0:02:38]}  Rde8 {[%clk 0:02:46]} 16. Rae1 {[%clk 0:02:33]}  Bxd3 {[%clk 0:02:39]} 17. Kxd3 {[%clk 0:02:33]}  Rhg8 {[%clk 0:02:40]} 18. Rh3 {[%clk 0:02:29]}  Rg4 {[%clk 0:02:35]} 19. e4 {[%clk 0:02:25]}  f5 {[%clk 0:02:30]} 20. e5 {[%clk 0:02:21]}  f6 {[%clk 0:02:24]} 21. e6 {[%clk 0:02:11]}  Nf8 {[%clk 0:02:21]} 22. e7 {[%clk 0:01:55]}  Ng6 {[%clk 0:02:21]} 23. Rf1 {[%clk 0:01:55]}  Nxe7 {[%clk 0:02:21]} 24. Rf3 {[%clk 0:01:52]}  Kd7 {[%clk 0:02:15]} 25. Ne2 {[%clk 0:01:46]}  Ng6 {[%clk 0:02:06]} 26. Rxf5 {[%clk 0:01:45]}  Rge4 {[%clk 0:02:00]} 27. Nf4 {[%clk 0:01:43]}  Re3+ {[%clk 0:01:57]} 28. Kd2 {[%clk 0:01:42]}  Nxf4 {[%clk 0:01:57]} 29. gxf4 {[%clk 0:01:43]}  Re2+ {[%clk 0:01:56]} 30. Kd3 {[%clk 0:01:44]}  Rxg2 {[%clk 0:01:55]} 31. Rxf6 {[%clk 0:01:30]}  Rxb2 {[%clk 0:01:54]} 32. Rf7+ {[%clk 0:01:19]}  Re7 {[%clk 0:01:49]} 33. Rf5 {[%clk 0:01:16]}  Rxa2 {[%clk 0:01:47]} 34. Rxh5 {[%clk 0:01:10]}  Ra3+ {[%clk 0:01:47]} 0-1


[Site "https://www.chess.com"]